bitfinex/quotes_BTCUSD_20240901
["timestamp","ask_amount","ask_price","bid_price","bid_amount"]
[1725206780100,0.88515692,58458.0,58457.0,0.0288998]
[1725206780339,0.54303192,58458.0,58457.0,0.0288998]
[1725206780556,1.12378621,58458.0,58457.0,0.0288998]
[1725206780784,3.72397472,58458.0,58457.0,0.0288998]
[1725206781034,2.10358592,58458.0,58457.0,0.0288998]
[1725206781258,1.07192582,58458.0,58457.0,0.0288998]
[1725206781474,1.0440809,58458.0,58457.0,0.0148998]
[1725206781689,1.1815259,58458.0,58457.0,0.0148998]
[1725206781903,1.1925259,58458.0,58457.0,0.0158998]
[1725206782359,1.5216509,58458.0,58457.0,0.0008998]
[1725206782582,1.63305831,58458.0,58457.0,0.0018998]
[1725206782814,1.63305831,58458.0,58457.0,0.0008998]
[1725206783027,1.99888611,58458.0,58457.0,0.0008998]
[1725206783242,2.00088611,58458.0,58457.0,0.0008998]
[1725206783678,2.02873816,58458.0,58457.0,0.0008998]
[1725206783890,2.01673816,58458.0,58457.0,0.0008998]
[1725206784108,2.02173816,58458.0,58457.0,0.0008998]
[1725206784325,2.02073816,58458.0,58457.0,0.0008998]
[1725206784547,2.02673816,58458.0,58457.0,0.0018998]
[1725206785458,2.03473816,58458.0,58457.0,0.0028998]
[1725206785692,2.38886316,58458.0,58457.0,0.0028998]
[1725206785922,2.38886316,58458.0,58449.0,0.0008987]
[1725206785923,1.75546184,58450.0,58449.0,0.0008987]
[1725206786141,4.14625184,58450.0,58449.0,0.0008987]
[1725206786421,4.14825184,58450.0,58449.0,0.0008987]
[1725206786638,4.19810632,58450.0,58449.0,0.0008987]
[1725206786888,4.25490632,58450.0,58449.0,0.0008987]
[1725206787104,2.89714796,58450.0,58449.0,0.0008987]
[1725206787316,2.87029348,58450.0,58449.0,0.0008987]
[1725206787549,2.8710459,58450.0,58449.0,0.0038987]
[1725206788459,2.87612724,58450.0,58449.0,0.0038987]
[1725206788694,2.8828473,58450.0,58449.0,0.0038987]
[1725206789191,2.8848473,58450.0,58449.0,0.0048987]
[1725206789421,2.7104619,58450.0,58449.0,0.0048987]
[1725206789641,2.5443759,58450.0,58449.0,0.0048987]
[1725206789858,2.7104619,58450.0,58449.0,0.0048987]
[1725206790367,2.16910206,58450.0,58449.0,0.0048987]
[1725206790589,2.3662899,58450.0,58449.0,0.0048987]
[1725206790805,2.5356753,58450.0,58449.0,0.0048987]
[1725206791024,2.5406753,58450.0,58449.0,0.0048987]
[1725206791241,2.53984154,58450.0,58449.0,0.0048987]
[1725206791471,2.11253354,58450.0,58449.0,0.0048987]
[1725206791681,4.40332354,58450.0,58449.0,0.0048987]
[1725206791913,4.40832354,58450.0,58449.0,0.0048987]
[1725206793043,3.8528609,58450.0,58449.0,0.0048987]
[1725206793282,3.6761299,58450.0,58449.0,0.0048987]
[1725206793699,3.6811299,58450.0,58449.0,0.0048987]
[1725206794184,4.0233019,58450.0,58449.0,0.0048987]
[1725206795024,3.70798478,58450.0,58449.0,0.0048987]
[1725206795280,3.87153642,58450.0,58449.0,0.0048987]
[1725206795495,3.23556878,58450.0,58449.0,0.0048987]
[1725206795704,3.23756878,58450.0,58449.0,0.0048987]
[1725206795919,0.855517,58444.0,58443.0,0.0007974]
[1725206796131,0.955517,58444.0,58443.0,0.0007974]
[1725206796342,1.819902,58444.0,58443.0,0.0007974]
[1725206797012,1.451444,58444.0,58443.0,0.0007974]
[1725206797224,1.451444,58444.0,58443.0,0.1401974]
[1725206797225,0.61531,58444.0,58443.0,0.1401974]
[1725206797442,0.64216426,58444.0,58443.0,0.1401974]
[1725206797658,0.61531,58444.0,58443.0,0.1401974]
[1725206798129,0.002,58444.0,58443.0,0.33462314]
[1725206798345,0.002,58444.0,58443.0,0.3113034]
[1725206798566,0.002,58444.0,58443.0,0.1401974]
[1725206798801,0.173103,58444.0,58443.0,0.1401974]
[1725206799266,0.002,58444.0,58443.0,0.1401974]
[1725206799479,0.002,58444.0,58443.0,0.1321974]
[1725206799480,0.001,58444.0,58443.0,0.1321974]
[1725206799686,0.1,58445.0,58443.0,0.1311974]
[1725206799905,0.001,58444.0,58443.0,0.3023034]
[1725206800122,0.001,58444.0,58443.0,0.6445164]
[1725206800347,0.001,58444.0,58443.0,0.9867294]
[1725206800561,0.001,58444.0,58443.0,0.2271974]
[1725206800775,0.001,58444.0,58443.0,0.7405164]
[1725206801006,0.000818,58450.0,58443.0,0.7405164]
[1725206801007,0.001,58445.0,58444.0,0.51331]
[1725206801464,0.001,58445.0,58444.0,0.51231]
[1725206802201,0.001,58445.0,58444.0,0.170103]
[1725206802429,0.001,58445.0,58444.0,0.63471]
[1725206802661,0.000818,58450.0,58447.0,0.171094]
[1725206802886,0.000818,58450.0,58448.0,0.1224]
[1725206803101,0.000818,58450.0,58448.0,0.293492]
[1725206803315,0.000818,58450.0,58448.0,0.1224]
[1725206804178,0.000818,58450.0,58448.0,0.1294]
[1725206805750,0.171089,58449.0,58448.0,0.1294]
[1725206805981,0.513267,58449.0,58448.0,0.1294]
[1725206806429,0.513267,58449.0,58448.0,0.1374]
[1725206806656,0.171089,58449.0,58448.0,0.1374]
[1725206806956,0.955445,58449.0,58448.0,0.007]
[1725206807180,0.955445,58449.0,58448.0,0.016]
[1725206807417,1.05760494,58449.0,58448.0,0.016]
[1725206807633,0.000818,58450.0,58448.0,0.009]
[1725206807878,0.000818,58450.0,58449.0,1.07426638]
[1725206808156,0.000818,58450.0,58449.0,1.41544438]
[1725206808807,0.000818,58450.0,58449.0,1.46597944]
[1725206809045,0.000818,58450.0,58449.0,1.46598395]
[1725206809264,0.000818,58450.0,58449.0,1.41544438]
[1725206809733,0.000818,58450.0,58449.0,1.412023]
[1725206810167,0.000818,58450.0,58449.0,1.426023]
[1725206810842,0.000818,58450.0,58449.0,1.412023]
[1725206811084,0.000818,58450.0,58449.0,1.426023]
[1725206811298,0.000818,58450.0,58449.0,1.440023]
[1725206813582,0.000818,58450.0,58449.0,1.097845]
[1725206814235,0.000818,58450.0,58449.0,1.440023]
[1725206819225,0.000818,58450.0,58449.0,1.097845]
[1725206820962,0.000818,58450.0,58449.0,0.2434]
[1725206821451,0.000818,58450.0,58449.0,0.756667]
[1725206821663,0.000818,58450.0,58449.0,1.10226656]
[1725206822152,0.000818,58450.0,58449.0,1.44444456]
[1725206822830,0.000818,58450.0,58449.0,1.441023]
[1725206824677,0.000818,58450.0,58449.0,1.098845]
[1725206830416,0.514076,58450.0,58449.0,0.028]
[1725206830669,0.856248,58450.0,58449.0,0.028]
[1725206830901,0.9418728,58450.0,58449.0,0.028]
[1725206831590,0.9418728,58450.0,58449.0,0.014]
[1725206831850,1.8145118,58450.0,58449.0,0.014]
[1725206832082,2.07228391,58450.0,58449.0,0.028]
[1725206832486,1.69986624,58450.0,58449.0,0.014]
[1725206832705,1.69986624,58450.0,58449.0,0.028]
[1725206832926,0.998948,58450.0,58449.0,0.028]
[1725206833147,1.113748,58450.0,58449.0,0.014]
[1725206833377,1.113748,58450.0,58448.0,0.0008998]
[1725206833378,0.855445,58449.0,58448.0,0.0008998]
[1725206833629,0.955445,58449.0,58448.0,0.0008998]
[1725206833846,1.0655413,58449.0,58448.0,0.0008998]
[1725206834328,0.955445,58449.0,58448.0,0.0008998]
[1725206834785,0.955445,58449.0,58448.0,0.0038998]
[1725206836087,0.955445,58449.0,58448.0,0.0088998]
[1725206836394,1.297623,58449.0,58448.0,0.0088998]
[1725206838847,0.955445,58449.0,58448.0,0.0088998]
[1725206839072,0.613267,58449.0,58448.0,0.0088998]
[1725206839285,0.000818,58450.0,58448.0,0.1799898]
[1725206840162,0.000818,58450.0,58448.0,0.1749898]
[1725206840377,0.000818,58450.0,58448.0,0.1719898]
[1725206840582,0.000818,58450.0,58449.0,0.171089]
[1725206840794,0.000818,58450.0,58448.0,0.0138998]
[1725206840999,0.000818,58450.0,58448.0,0.1849918]
[1725206841444,0.000818,58450.0,58449.0,0.2058]
[1725206841675,0.000818,58450.0,58449.0,0.376889]
[1725206842313,0.000818,58450.0,58449.0,1.061245]
[1725206842979,0.000818,58450.0,58449.0,1.076245]
[1725206843170,0.000818,58450.0,58449.0,1.069245]
[1725206843385,0.000818,58450.0,58449.0,1.068245]
[1725206843901,0.000818,58450.0,58449.0,0.733067]
[1725206844115,0.000818,58450.0,58449.0,0.747067]
[1725206844332,0.000818,58450.0,58449.0,0.404889]
[1725206844543,0.000818,58450.0,58449.0,0.747067]
[1725206844985,0.171904,58450.0,58449.0,0.2338]
[1725206845389,0.2233113,58450.0,58449.0,0.028]
[1725206845594,0.000818,58450.0,58449.0,0.028]
[1725206846216,0.514076,58450.0,58449.0,0.028]
[1725206846850,0.856248,58450.0,58449.0,0.028]
[1725206847054,0.9418728,58450.0,58449.0,0.028]
[1725206847458,0.856248,58450.0,58449.0,0.028]
[1725206848114,0.956248,58450.0,58449.0,0.028]
[1725206848945,0.956248,58450.0,58449.0,0.014]
[1725206849370,0.956248,58450.0,58449.0,0.028]
[1725206849601,0.98309816,58450.0,58449.0,0.028]
[1725206849799,0.98309816,58450.0,58449.0,0.014]
[1725206849800,1.11628355,58450.0,58449.0,0.014]
[1725206850012,1.197623,58449.0,58448.0,0.0008998]
[1725206850220,1.297623,58449.0,58448.0,0.0008998]
[1725206851465,1.297623,58449.0,58448.0,0.0148998]
[1725206851711,1.44412953,58449.0,58448.0,0.0148998]
[1725206852393,1.44412953,58449.0,58448.0,0.0288998]
[1725206852649,1.297623,58449.0,58448.0,0.0288998]
[1725206852862,1.297623,58449.0,58448.0,0.0148998]
[1725206853111,1.297623,58449.0,58448.0,0.0178998]
[1725206853334,0.955445,58449.0,58448.0,0.0218998]
[1725206854437,0.1,58449.0,58448.0,0.2268998]
[1725206854640,0.000818,58450.0,58448.0,0.2268998]
[1725206854641,0.171904,58450.0,58448.0,0.2268998]
[1725206854849,0.1,58449.0,58448.0,0.2268998]
[1725206855478,0.1,58449.0,58448.0,0.2228998]
[1725206855901,0.1,58449.0,58448.0,0.2258998]
[1725206856319,0.1,58449.0,58448.0,0.2228998]
[1725206856525,0.613267,58449.0,58448.0,0.2228998]
[1725206856741,0.613267,58449.0,58448.0,0.2268998]
[1725206857379,0.000818,58450.0,58449.0,0.626667]
[1725206857605,0.000818,58450.0,58449.0,1.060445]
[1725206857814,0.000818,58450.0,58449.0,1.402623]
[1725206859297,0.000818,58450.0,58449.0,1.411623]
[1725206859745,0.000818,58450.0,58449.0,1.418623]
[1725206859958,0.000818,58450.0,58449.0,1.411623]
[1725206860404,0.000818,58450.0,58449.0,1.402623]
[1725206860643,0.000818,58450.0,58449.0,1.416623]
[1725206861993,0.000818,58450.0,58449.0,1.430623]
[1725206864642,0.000818,58450.0,58449.0,1.416623]
[1725206865549,0.000818,58450.0,58449.0,0.718267]
[1725206865992,0.000818,58450.0,58449.0,0.746267]
[1725206866209,0.000818,58450.0,58449.0,0.732267]
[1725206866438,0.342122,58459.0,58450.0,0.342171]
[1725206866731,0.342122,58459.0,58450.0,0.10480209]
[1725206866966,0.171064,58458.0,58452.0,0.171079]
[1725206867403,0.171064,58458.0,58453.0,0.171074]
[1725206867633,0.342098,58463.0,58451.0,0.342162]
[1725206867853,0.1,58466.0,58461.0,0.1134]
[1725206868097,0.342057,58470.0,58461.0,0.36277211]
[1725206868322,0.330031,58469.0,58464.0,0.171045]
[1725206868536,0.1,58468.0,58464.0,0.171045]
[1725206869412,0.171038,58467.0,58462.0,0.171049]
[1725206869627,0.1,58466.0,58462.0,0.171049]
[1725206869840,0.1,58466.0,58461.0,0.376052]
[1725206870053,0.27104,58466.0,58464.0,0.013]
[1725206870294,0.27104,58466.0,58464.0,0.025]
[1725206870572,0.27104,58466.0,58464.0,0.013]
[1725206870573,0.02684272,58465.0,58464.0,0.013]
[1725206870835,0.19788472,58465.0,58464.0,0.013]
[1725206871283,0.171047,58464.0,58458.0,0.171062]
[1725206871521,0.171047,58464.0,58459.0,0.171059]
[1725206871769,0.171047,58464.0,58462.0,0.014]
[1725206872008,0.02684272,58465.0,58463.0,0.1134]
[1725206872261,0.02684272,58465.0,58464.0,0.171045]
[1725206872498,0.02684272,58465.0,58464.0,0.014]
[1725206872715,0.02684272,58465.0,58463.0,0.1134]
[1725206873160,0.02684272,58465.0,58463.0,0.1274]
[1725206873372,0.02684272,58465.0,58463.0,0.298447]
[1725206874001,0.02684272,58465.0,58464.0,0.185045]
[1725206874497,0.02684272,58465.0,58464.0,0.527135]
[1725206874715,0.02684272,58465.0,58464.0,0.185045]
[1725206875369,0.02684272,58465.0,58464.0,0.199045]
[1725206875792,0.02684272,58465.0,58464.0,0.185045]
[1725206876730,0.02684272,58465.0,58464.0,0.883225]
[1725206877170,0.02684272,58465.0,58464.0,0.541135]
[1725206878207,0.02684272,58465.0,58464.0,0.028]
[1725206883443,0.19788472,58465.0,58464.0,0.028]
[1725206884517,0.88205472,58465.0,58464.0,0.028]
[1725206884789,0.89523,58465.0,58464.0,0.028]
[1725206885681,0.85603,58465.0,58464.0,0.028]
[1725206887308,0.513945,58465.0,58464.0,0.028]
[1725206887746,1.198115,58465.0,58464.0,0.028]
[1725206888010,1.81503768,58465.0,58464.0,0.028]
[1725206888269,1.84383104,58465.0,58464.0,0.028]
[1725206888487,4.13462104,58465.0,58464.0,0.028]
[1725206888756,4.13462104,58465.0,58464.0,0.014]
[1725206889003,0.855415,58451.0,58444.0,0.0869]
[1725206890196,0.513249,58451.0,58444.0,0.0869]
[1725206890435,0.513249,58451.0,58450.0,0.0148998]
[1725206890885,0.855415,58451.0,58450.0,0.0148998]
[1725206891322,0.955415,58451.0,58450.0,0.0148998]
[1725206891557,1.0548765,58451.0,58450.0,0.0288998]
[1725206892048,0.955415,58451.0,58450.0,0.0288998]
[1725206892437,0.613249,58451.0,58450.0,0.0288998]
[1725206892875,0.955415,58451.0,58450.0,0.0288998]
[1725206893096,0.613249,58451.0,58450.0,0.0288998]
[1725206893340,0.955415,58451.0,58450.0,0.0288998]
[1725206893829,0.613249,58451.0,58450.0,0.0288998]
[1725206894952,0.955415,58451.0,58450.0,0.0288998]
[1725206895170,0.613249,58451.0,58450.0,0.0288998]
[1725206895641,0.955415,58451.0,58450.0,0.0288998]
[1725206897039,1.0509565,58451.0,58450.0,0.0288998]
[1725206897306,0.613249,58451.0,58450.0,0.0288998]
[1725206898018,0.955415,58451.0,58450.0,0.0288998]
[1725206898459,1.297581,58451.0,58450.0,0.0288998]
[1725206898729,1.98782943,58451.0,58450.0,0.0288998]
[1725206898984,2.17929164,58451.0,58450.0,0.0288998]
[1725206899195,2.54830921,58451.0,58450.0,0.0288998]
[1725206899911,2.54830921,58451.0,58450.0,0.0148998]
[1725206900152,2.55030921,58451.0,58450.0,0.0148998]
[1725206900397,2.03459157,58451.0,58450.0,0.0148998]
[1725206901080,2.03459157,58451.0,58450.0,0.0008998]
[1725206901081,1.44178557,58451.0,58450.0,0.0008998]
[1725206901322,1.43978557,58451.0,58450.0,0.0008998]
[1725206901557,1.412934,58451.0,58450.0,0.0148998]
[1725206901790,1.58348564,58451.0,58450.0,0.0148998]
[1725206902029,1.414934,58451.0,58450.0,0.0008998]
[1725206902246,1.302581,58451.0,58450.0,0.0008998]
[1725206902970,1.300581,58451.0,58450.0,0.0008998]
[1725206903193,1.302581,58451.0,58450.0,0.0008998]
[1725206903662,0.616249,58451.0,58450.0,0.0008998]
[1725206904340,0.003,58451.0,58450.0,0.3705858]
[1725206904342,0.02685162,58459.0,58450.0,0.3705858]
[1725206904343,0.02685162,58459.0,58450.0,0.5416718]
[1725206904574,0.171064,58458.0,58452.0,0.168078]
[1725206905081,0.171064,58458.0,58450.0,0.61170617]
[1725206905082,0.171058,58460.0,58450.0,0.5416718]
[1725206905318,0.171058,58460.0,58455.0,0.171069]
[1725206905545,0.342113,58461.0,58456.0,0.1101]
[1725206905546,0.171062,58459.0,58456.0,0.1101]
[1725206905993,0.171063,58458.0,58456.0,0.1101]
[1725206906458,0.1,58457.0,58456.0,0.1101]
[1725206906683,0.27106,58459.0,58456.0,0.1101]
[1725206906929,0.17106,58459.0,58456.0,0.1161]
[1725206907174,0.1,58458.0,58456.0,0.1101]
[1725206907643,0.271065,58458.0,58456.0,0.1171]
[1725206908331,0.271065,58458.0,58456.0,0.1181]
[1725206908815,0.271065,58458.0,58456.0,0.1101]
[1725206909052,0.271065,58458.0,58456.0,0.1191]
[1725206909817,0.271065,58458.0,58456.0,0.1251]
[1725206910043,0.1,58458.0,58456.0,0.1191]
[1725206910268,0.1,58460.0,58456.0,0.1191]
[1725206910493,0.271057,58460.0,58456.0,0.1191]
[1725206910729,0.271057,58460.0,58456.0,0.1271]
[1725206910971,0.171061,58459.0,58456.0,0.1271]
[1725206911200,0.171061,58459.0,58456.0,0.1181]
[1725206911201,0.1,58458.0,58456.0,0.1181]
[1725206911422,0.1,58458.0,58456.0,0.1101]
[1725206911645,0.1,58458.0,58456.0,0.1171]
[1725206911907,0.1,58458.0,58456.0,0.1221]
[1725206912125,0.513985,58461.0,58456.0,0.1221]
[1725206912126,0.171874,58461.0,58456.0,0.286167]
[1725206912348,0.171874,58461.0,58456.0,0.295167]
[1725206912349,0.1,58460.0,58456.0,0.295167]
[1725206913064,0.171061,58459.0,58456.0,0.1191]
[1725206913320,0.1,58460.0,58456.0,0.1191]
[1725206913559,0.271058,58460.0,58456.0,0.1191]
[1725206913780,0.271058,58460.0,58456.0,0.1101]
[1725206914007,0.271058,58460.0,58456.0,0.1181]
[1725206914249,0.271058,58460.0,58456.0,0.1161]
[1725206914504,0.271058,58460.0,58456.0,0.1211]
[1725206914505,0.17106,58459.0,58456.0,0.1211]
[1725206914733,0.17106,58459.0,58456.0,0.1151]
[1725206915224,0.17106,58459.0,58456.0,0.1221]
[1725206915689,0.17106,58459.0,58456.0,0.1151]
[1725206916189,0.17106,58459.0,58456.0,0.1101]
[1725206916486,0.171064,58458.0,58456.0,0.1161]
[1725206916756,0.855327,58457.0,58456.0,0.006]
[1725206916989,1.365831,58457.0,58456.0,0.006]
[1725206917239,1.707962,58457.0,58456.0,0.006]
[1725206917472,1.87651364,58457.0,58456.0,0.006]
[1725206917736,1.707962,58457.0,58456.0,0.008]
[1725206917978,1.297458,58457.0,58456.0,0.008]
[1725206918202,1.297458,58457.0,58456.0,0.009]
[1725206918450,1.297458,58457.0,58456.0,0.019]
[1725206918674,0.955327,58457.0,58456.0,0.019]
[1725206918894,0.955327,58457.0,58456.0,0.009]
[1725206919344,0.171079,58453.0,58450.0,0.0008998]
[1725206919856,0.171074,58455.0,58450.0,0.0008998]
[1725206920103,0.342145,58455.0,58450.0,0.0008998]
[1725206920578,0.171079,58453.0,58450.0,0.0008998]
[1725206921031,0.171079,58453.0,58450.0,0.0178998]
[1725206921251,0.171079,58453.0,58450.0,0.0098998]
[1725206922165,0.171083,58451.0,58450.0,0.0098998]
[1725206922615,0.855415,58451.0,58450.0,0.0148998]
[1725206922864,0.855415,58451.0,58450.0,0.0098998]
[1725206923374,0.955415,58451.0,58450.0,0.0178998]
[1725206923625,1.09918482,58451.0,58450.0,0.0098998]
[1725206923867,1.09918482,58451.0,58450.0,0.0198998]
[1725206924094,1.44135082,58451.0,58450.0,0.0198998]
[1725206924340,1.44135082,58451.0,58450.0,0.0108998]
[1725206924833,1.44135082,58451.0,58450.0,0.0218998]
[1725206926497,1.46820004,58451.0,58450.0,0.0218998]
[1725206927075,1.44135082,58451.0,58450.0,0.0218998]
[1725206927744,1.297581,58451.0,58450.0,0.0218998]
[1725206927962,0.955415,58451.0,58450.0,0.0218998]
[1725206929776,0.98226424,58451.0,58450.0,0.0218998]
[1725206930716,1.32443024,58451.0,58450.0,0.0218998]
[1725206930971,2.34419835,58451.0,58450.0,0.0218998]
[1725206931217,2.51274999,58451.0,58450.0,0.0218998]
[1725206931446,2.88291599,58451.0,58450.0,0.0218998]
[1725206932148,2.54074999,58451.0,58450.0,0.0218998]
[1725206932363,2.54074999,58451.0,58450.0,0.0108998]
[1725206932640,2.54074999,58451.0,58450.0,0.0008998]
[1725206932876,1.32443024,58451.0,58450.0,0.0008998]
[1725206933109,1.32443024,58451.0,58450.0,0.0048998]
[1725206933320,1.297581,58451.0,58450.0,0.0048998]
[1725206933984,1.297581,58451.0,58450.0,0.0108998]
[1725206936559,2.62153153,58451.0,58450.0,0.0108998]
[1725206936789,2.02206217,58451.0,58450.0,0.0108998]
[1725206937029,0.98226553,58451.0,58450.0,0.0108998]
[1725206937245,0.98226553,58451.0,58450.0,0.2072998]
[1725206937246,0.955415,58451.0,58450.0,0.2072998]
[1725206937470,0.955415,58451.0,58450.0,0.1214998]
[1725206937697,1.069345,58451.0,58450.0,0.0108998]
[1725206937941,1.21173311,58451.0,58450.0,0.0108998]
[1725206939993,1.55389911,58451.0,58450.0,0.0108998]
[1725206940229,1.5807504,58451.0,58450.0,0.0108998]
[1725206940892,1.78262251,58451.0,58450.0,0.0108998]
[1725206941128,1.80562251,58451.0,58450.0,0.0108998]
[1725206941876,1.81652251,58451.0,58450.0,0.0108998]
[1725206943276,2.15868851,58451.0,58450.0,0.0108998]
[1725206949346,1.6300344,58451.0,58450.0,0.0108998]
[1725206949588,1.47226229,58451.0,58450.0,0.0108998]
[1725206950664,1.35833229,58451.0,58450.0,0.0108998]
[1725206950905,2.01188229,58451.0,58450.0,0.0108998]
[1725206951115,1.44205929,58451.0,58450.0,0.0108998]
[1725206951361,1.415208,58451.0,58450.0,0.0108998]
[1725206952266,1.55766632,58451.0,58450.0,0.0108998]
[1725206952700,1.415208,58451.0,58450.0,0.0108998]
[1725206955879,1.44205966,58451.0,58450.0,0.0108998]
[1725206959541,2.10520966,58451.0,58450.0,0.0108998]
[1725206959746,1.69348466,58451.0,58450.0,0.0108998]
[1725206960387,1.35131866,58451.0,58450.0,0.0108998]
[1725206960600,0.02766966,58451.0,58450.0,0.41320576]
[1725206960828,0.02766966,58451.0,58450.0,0.7345578]
[1725206960829,0.000818,58451.0,58450.0,0.7345578]
[1725206961042,0.000818,58451.0,58450.0,0.3923858]
[1725206961249,0.171901,58451.0,58450.0,0.2212998]
[1725206961690,0.856233,58451.0,58450.0,0.2212998]
[1725206962122,0.614067,58451.0,58450.0,0.2212998]
[1725206962327,2.610575,58451.0,58450.0,0.2212998]
[1725206962538,0.956233,58451.0,58450.0,0.2212998]
[1725206962962,0.956233,58451.0,58450.0,0.2172998]
[1725206963417,0.956233,58451.0,58450.0,0.2252998]
[1725206963628,0.956233,58451.0,58450.0,0.2112998]
[1725206963836,0.956233,58451.0,58450.0,0.2252998]
[1725206964055,0.956233,58451.0,58450.0,0.2292998]
[1725206964270,0.956233,58451.0,58450.0,0.2252998]
[1725206964488,0.956233,58451.0,58450.0,0.2152998]
[1725206964752,0.614067,58451.0,58450.0,0.2152998]
[1725206964953,0.614067,58451.0,58450.0,0.2172998]
[1725206965174,0.100818,58451.0,58450.0,0.23911976]
[1725206965411,0.000818,58451.0,58450.0,1.24632187]
[1725206965619,0.000818,58452.0,58451.0,0.855415]
[1725206965838,0.000818,58452.0,58451.0,1.407981]
[1725206966492,0.000818,58452.0,58451.0,1.52633557]
[1725206967412,0.000818,58452.0,58451.0,1.55433557]
[1725206969351,0.000818,58452.0,58451.0,1.435981]
[1725206971708,0.000818,58458.0,58457.0,1.065727]
[1725206971918,0.000818,58458.0,58457.0,1.56563011]
[1725206972344,0.000818,58458.0,58457.0,1.90976111]
[1725206972558,0.000818,58465.0,58464.0,0.173045]
[1725206972764,0.000818,58465.0,58464.0,1.22339711]
[1725206972973,0.000818,58465.0,58464.0,1.56548711]
[1725206974075,0.000818,58465.0,58464.0,1.92357711]
[1725206974289,0.000818,58479.0,58478.0,0.715912]
[1725206974523,0.000818,58479.0,58478.0,1.399928]
[1725206976094,0.000818,58479.0,58478.0,1.412928]
[1725206976529,0.000818,58479.0,58478.0,1.08292]
[1725206976769,0.000818,58479.0,58478.0,1.07092]
[1725206976987,0.000818,58479.0,58478.0,1.05792]
[1725206977205,0.000818,58479.0,58478.0,1.08592]
[1725206977645,0.000818,58479.0,58478.0,1.05792]
[1725206977862,0.000818,58479.0,58478.0,1.07192]
[1725206979176,0.000818,58479.0,58478.0,1.08592]
[1725206983603,0.000818,58479.0,58478.0,0.401904]
[1725206983844,0.000818,58479.0,58478.0,0.743912]
[1725206984643,0.000818,58479.0,58478.0,0.401904]
[1725206984897,0.000818,58479.0,58478.0,0.2309]
[1725206985332,0.000818,58479.0,58478.0,0.743912]
[1725206986774,0.000818,58479.0,58478.0,0.2309]
[1725206987233,0.000818,58479.0,58478.0,0.401904]
[1725206987484,0.000818,58479.0,58478.0,0.2309]
[1725206988043,0.000818,58479.0,58478.0,0.401904]
[1725206988484,0.000818,58479.0,58478.0,0.818304]
[1725206988715,0.000818,58479.0,58478.0,0.743912]
[1725206990482,0.000818,58479.0,58478.0,0.401904]
[1725206991018,0.000818,58479.0,58478.0,0.743912]
[1725206991467,0.000818,58479.0,58478.0,1.08592]
[1725206991743,0.000818,58479.0,58478.0,0.743912]
[1725206992699,0.000818,58479.0,58478.0,1.08592]
[1725206993131,0.000818,58479.0,58478.0,1.427928]
[1725206994804,0.000818,58479.0,58478.0,1.413928]
[1725206995227,0.000818,58479.0,58478.0,1.399928]
[1725206995690,0.000818,58479.0,58478.0,1.413928]
[1725206996393,0.000818,58479.0,58478.0,1.40666285]
[1725206996859,0.000818,58479.0,58478.0,1.42066285]
[1725206997542,0.000818,58479.0,58478.0,1.43466285]
[1725207001197,0.000818,58479.0,58478.0,1.42066285]
[1725207001645,0.000818,58479.0,58478.0,1.43466285]
[1725207002335,0.000818,58479.0,58478.0,1.42066285]
[1725207002554,0.000818,58479.0,58478.0,1.40666285]
[1725207002774,0.000818,58479.0,58478.0,1.42066285]
[1725207003192,0.000818,58479.0,58478.0,1.40666285]
[1725207003407,0.000818,58479.0,58478.0,1.42066285]
[1725207003635,0.000818,58479.0,58478.0,1.40666285]
[1725207003843,0.000818,58479.0,58478.0,1.399928]
[1725207004062,0.000818,58479.0,58478.0,1.413928]
[1725207004292,0.000818,58479.0,58478.0,1.427928]
[1725207004734,0.000818,58479.0,58478.0,1.413928]
[1725207004936,0.000818,58479.0,58478.0,1.427928]
[1725207005604,0.000818,58479.0,58478.0,1.413928]
[1725207005831,0.000818,58479.0,58478.0,1.427928]
[1725207009911,0.1,58496.0,58478.0,1.427928]
[1725207009912,0.04908,58509.0,58507.0,0.170919]
[1725207010124,0.03500633,58509.0,58507.0,1.01236911]
[1725207010336,0.03500633,58509.0,58503.0,0.26867211]
[1725207010549,0.03500633,58509.0,58500.0,0.341879]
[1725207010773,0.170923,58506.0,58499.0,0.15777211]
[1725207010985,0.170926,58505.0,58499.0,0.15777211]
[1725207011215,0.0409,58504.0,58500.0,0.17094]
[1725207011421,0.0409,58504.0,58500.0,0.170939]
[1725207012370,0.0409,58504.0,58501.0,0.170937]
[1725207012808,0.0409,58504.0,58499.0,0.15777211]
[1725207013016,0.03500633,58509.0,58487.0,0.341956]
[1725207013017,0.170958,58494.0,58487.0,0.341956]
[1725207013263,0.668537,58503.0,58491.0,0.170964]
[1725207013264,0.170951,58496.0,58491.0,0.170964]
[1725207013477,0.170962,58493.0,58487.0,0.170977]
[1725207013697,0.0921847,58495.0,58485.0,0.15777211]
[1725207013698,0.170966,58491.0,58485.0,0.32875411]
[1725207013910,0.341921,58493.0,58486.0,0.170978]
[1725207014120,0.17096,58494.0,58488.0,0.170973]
[1725207014343,0.170964,58492.0,58486.0,0.51294]
[1725207014560,0.170964,58492.0,58482.0,0.0898]
[1725207014561,0.170985,58485.0,58482.0,0.05035868]
[1725207014775,0.0409,58495.0,58480.0,0.40430714]
[1725207014776,0.341938,58491.0,58480.0,0.05035868]
[1725207014990,0.341938,58491.0,58474.0,0.12589672]
[1725207014991,0.171018,58474.0,58471.0,0.05035868]
[1725207015205,0.342004,58479.0,58467.0,0.05035868]
[1725207015411,0.1409,58478.0,58467.0,0.171034]
[1725207015651,0.1409,58478.0,58465.0,0.2015998]
[1725207015652,0.342022,58476.0,58465.0,0.0008998]
[1725207015856,0.1409,58478.0,58465.0,0.0008998]
[1725207015857,0.171028,58470.0,58465.0,0.0008998]
[1725207016107,0.171022,58472.0,58465.0,0.0008998]
[1725207016315,0.171017,58474.0,58471.0,0.014]
[1725207016725,0.171017,58474.0,58468.0,0.171033]
[1725207017148,0.0409,58478.0,58469.0,0.2007]
[1725207017370,0.0409,58478.0,58468.0,0.342063]